[Event "Early-Titled-Tuesday-Blitz-April-02-2024"]
[Site "Chess.com"]
[Date "2024.04.02"]
[Round "2"]
[White "FGHSMN"]
[Black "Dixit_Nikhil"]
[Result "0-1"]
[WhiteElo "2921"]
[BlackElo "2639"]
[TimeControl "180+1"]
[EndTime "8:18:37 PDT"]
[Termination "Dixit_Nikhil won by checkmate"]

1. e4 {[%clk 0:03:00.9]} 1... c5 {[%clk 0:02:56.2]} 2. Nf3 {[%clk 0:02:59.9]}
2... Nc6 {[%clk 0:02:55.9]} 3. Nc3 {[%clk 0:02:59.4]} 3... e5 {[%clk 0:02:53.5]}
4. Bc4 {[%clk 0:02:58.1]} 4... d6 {[%clk 0:02:53.1]} 5. d3 {[%clk 0:02:57.9]}
5... Be7 {[%clk 0:02:53.5]} 6. Nd5 {[%clk 0:02:53.3]} 6... Nf6 {[%clk
0:02:52.8]} 7. Nxf6+ {[%clk 0:02:53.8]} 7... Bxf6 {[%clk 0:02:52.5]} 8. c3
{[%clk 0:02:54.3]} 8... O-O {[%clk 0:02:52.2]} 9. O-O {[%clk 0:02:54]} 9... Be6
{[%clk 0:02:51.7]} 10. Rb1 {[%clk 0:02:41.5]} 10... d5 {[%clk 0:02:41.8]} 11.
exd5 {[%clk 0:02:33.5]} 11... Bxd5 {[%clk 0:02:42.7]} 12. Qe2 {[%clk 0:02:33.8]}
12... Bxc4 {[%clk 0:02:40.2]} 13. dxc4 {[%clk 0:02:34.7]} 13... Qc7 {[%clk
0:02:40.5]} 14. Be3 {[%clk 0:02:34.7]} 14... b6 {[%clk 0:02:40.1]} 15. Rfd1
{[%clk 0:02:34.1]} 15... Rfd8 {[%clk 0:02:39.2]} 16. Nd2 {[%clk 0:02:33]} 16...
g6 {[%clk 0:02:38.4]} 17. Ne4 {[%clk 0:02:31.4]} 17... Bg7 {[%clk 0:02:38.8]}
18. Bg5 {[%clk 0:02:30.1]} 18... Rxd1+ {[%clk 0:02:36]} 19. Rxd1 {[%clk
0:02:31]} 19... f5 {[%clk 0:02:35.5]} 20. Nf6+ {[%clk 0:02:27.4]} 20... Bxf6
{[%clk 0:02:33.6]} 21. Bxf6 {[%clk 0:02:28.3]} 21... Rf8 {[%clk 0:02:29.8]} 22.
Bh4 {[%clk 0:02:23.5]} 22... h6 {[%clk 0:02:22]} 23. f3 {[%clk 0:02:18.8]} 23...
g5 {[%clk 0:02:20.9]} 24. Bg3 {[%clk 0:02:18]} 24... f4 {[%clk 0:02:20.1]} 25.
Bf2 {[%clk 0:02:17.7]} 25... Rd8 {[%clk 0:02:20.5]} 26. Rd5 {[%clk 0:02:16.6]}
26... Rxd5 {[%clk 0:02:13.4]} 27. cxd5 {[%clk 0:02:17.5]} 27... Ne7 {[%clk
0:02:14]} 28. c4 {[%clk 0:02:09.2]} 28... Qd6 {[%clk 0:02:12.3]} 29. h4 {[%clk
0:02:06.4]} 29... Nf5 {[%clk 0:02:06.8]} 30. hxg5 {[%clk 0:02:05.7]} 30... hxg5
{[%clk 0:02:07.7]} 31. Qe4 {[%clk 0:02:05.5]} 31... Nd4 {[%clk 0:02:06.2]} 32.
a3 {[%clk 0:01:53.7]} 32... a5 {[%clk 0:02:02.2]} 33. Be1 {[%clk 0:01:48.6]}
33... Kg7 {[%clk 0:02:00.2]} 34. Bc3 {[%clk 0:01:47.7]} 34... Kg8 {[%clk
0:01:57.7]} 35. Kf2 {[%clk 0:01:45.5]} 35... Kg7 {[%clk 0:01:57.9]} 36. Ke1
{[%clk 0:01:43.8]} 36... Qf6 {[%clk 0:01:50.6]} 37. Kd2 {[%clk 0:01:41.9]} 37...
Qd6 {[%clk 0:01:46.7]} 38. Kd3 {[%clk 0:01:40.8]} 38... Qf6 {[%clk 0:01:43.1]}
39. b4 {[%clk 0:01:39.8]} 39... axb4 {[%clk 0:01:40.8]} 40. axb4 {[%clk
0:01:40.7]} 40... Qd6 {[%clk 0:01:32.3]} 41. Kd2 {[%clk 0:01:35.8]} 41... Qf6
{[%clk 0:01:30.1]} 42. Kc1 {[%clk 0:01:32.4]} 42... Qd6 {[%clk 0:01:29.8]} 43.
Kb2 {[%clk 0:01:31]} 43... Kg8 {[%clk 0:01:26.7]} 44. b5 {[%clk 0:01:28.5]}
44... Kg7 {[%clk 0:01:25.6]} 45. Qb1 {[%clk 0:01:26.9]} 45... Qg6 {[%clk
0:01:18.7]} 46. Qd1 {[%clk 0:01:10.1]} 46... Kf7 {[%clk 0:01:13.5]} 47. Qa4
{[%clk 0:00:55]} 47... Qd3 {[%clk 0:01:13]} 48. Qa7+ {[%clk 0:00:52.5]} 48...
Kg6 {[%clk 0:01:09.2]} 49. Qxb6+ {[%clk 0:00:52.2]} 49... Kh5 {[%clk 0:01:09.6]}
50. Bxd4 {[%clk 0:00:29.1]} 50... Qxd4+ {[%clk 0:01:09.7]} 51. Kb1 {[%clk
0:00:27.5]} 51... Qd3+ {[%clk 0:01:08.2]} 52. Kb2 {[%clk 0:00:27.5]} 52... Qd2+
{[%clk 0:01:06.5]} 53. Ka1 {[%clk 0:00:25.3]} 53... Qc1+ {[%clk 0:01:05.8]} 54.
Ka2 {[%clk 0:00:25.6]} 54... Qxc4+ {[%clk 0:01:06.5]} 55. Kb2 {[%clk 0:00:26.3]}
55... Qb4+ {[%clk 0:01:05.4]} 56. Kc2 {[%clk 0:00:26.7]} 56... Qc4+ {[%clk
0:01:05.5]} 57. Kd2 {[%clk 0:00:27.4]} 57... Qxd5+ {[%clk 0:01:05.8]} 58. Ke1
{[%clk 0:00:27.3]} 58... Kh4 {[%clk 0:01:00.3]} 59. Qc6 {[%clk 0:00:24.2]} 59...
Qd4 {[%clk 0:00:37.2]} 60. Qe4 {[%clk 0:00:24]} 60... Qc3+ {[%clk 0:00:37.1]}
61. Kf2 {[%clk 0:00:23.6]} 61... Qd2+ {[%clk 0:00:22.6]} 62. Kg1 {[%clk
0:00:23.6]} 62... Kg3 {[%clk 0:00:23.2]} 63. Kf1 {[%clk 0:00:14.9]} 63... Qf2#
{[%clk 0:00:22.5]} 0-1

[Event "Early-Titled-Tuesday-Blitz-April-02-2024"]
[Site "Chess.com"]
[Date "2024.04.02"]
[Round "2"]
[White "Mikhail_Bryakin"]
[Black "HATilay"]
[Result "1-0"]
[WhiteElo "2921"]
[BlackElo "2617"]
[TimeControl "180+1"]
[EndTime "8:18:37 PDT"]
[Termination "Mikhail_Bryakin won by resignation"]

1. Nf3 {[%clk 0:03:00.7]} 1... Nf6 {[%clk 0:02:57.7]} 2. e3 {[%clk 0:02:59]}
2... d5 {[%clk 0:02:54.1]} 3. c4 {[%clk 0:02:59.1]} 3... c5 {[%clk 0:02:54]} 4.
cxd5 {[%clk 0:02:57.3]} 4... Nxd5 {[%clk 0:02:54]} 5. b3 {[%clk 0:02:56.2]} 5...
f6 {[%clk 0:02:39.7]} 6. Bb2 {[%clk 0:02:53.7]} 6... e5 {[%clk 0:02:40.2]} 7.
Bb5+ {[%clk 0:02:50.6]} 7... Nc6 {[%clk 0:02:32]} 8. O-O {[%clk 0:02:50.3]} 8...
Be7 {[%clk 0:02:17.8]} 9. Nc3 {[%clk 0:02:49.9]} 9... Nc7 {[%clk 0:02:12.5]} 10.
Bxc6+ {[%clk 0:02:47.5]} 10... bxc6 {[%clk 0:02:13.4]} 11. d4 {[%clk 0:02:47.8]}
11... exd4 {[%clk 0:01:52]} 12. exd4 {[%clk 0:02:48.7]} 12... Bg4 {[%clk
0:01:51.9]} 13. h3 {[%clk 0:02:36.7]} 13... Bh5 {[%clk 0:01:50.3]} 14. dxc5
{[%clk 0:02:34.3]} 14... O-O {[%clk 0:01:24.2]} 15. Qe2 {[%clk 0:02:24.1]} 15...
Re8 {[%clk 0:01:08.3]} 16. Qc4+ {[%clk 0:02:12.3]} 16... Bf7 {[%clk 0:00:56.2]}
17. Qa4 {[%clk 0:02:11.8]} 17... Qd3 {[%clk 0:00:28.5]} 18. Qxc6 {[%clk
0:01:54.8]} 18... Rac8 {[%clk 0:00:28]} 19. Rad1 {[%clk 0:01:54.4]} 19... Qc2
{[%clk 0:00:27.9]} 20. Rd2 {[%clk 0:01:54.9]} 20... Qf5 {[%clk 0:00:28.3]} 21.
Qe4 {[%clk 0:01:49.4]} 21... Qxc5 {[%clk 0:00:26.5]} 22. Na4 {[%clk 0:01:41.8]}
22... Qa5 {[%clk 0:00:16.6]} 23. Bc3 {[%clk 0:01:41.4]} 23... Qb5 {[%clk
0:00:16.2]} 24. Nd4 {[%clk 0:01:40.9]} 24... Qg5 {[%clk 0:00:16.3]} 25. Nf3
{[%clk 0:01:38.8]} 25... Qb5 {[%clk 0:00:15.2]} 26. Qe2 {[%clk 0:01:33.4]} 26...
Qb7 {[%clk 0:00:07]} 27. Qd1 {[%clk 0:01:24.6]} 27... Nd5 {[%clk 0:00:04.8]} 28.
Bb2 {[%clk 0:01:20.6]} 28... Nf4 {[%clk 0:00:05]} 29. Rd4 {[%clk 0:01:20.2]}
29... Ne6 {[%clk 0:00:03]} 30. Rd2 {[%clk 0:01:12.9]} 30... Rc7 {[%clk 0:00:03]}
31. Nd4 {[%clk 0:01:10.5]} 31... Nxd4 {[%clk 0:00:03.1]} 32. Bxd4 {[%clk
0:01:07]} 32... Bb4 {[%clk 0:00:03.3]} 33. Rd3 {[%clk 0:01:04.1]} 33... Bg6
{[%clk 0:00:03.1]} 34. Re3 {[%clk 0:01:03.1]} 34... Rxe3 {[%clk 0:00:02.9]} 35.
Bxe3 {[%clk 0:01:02.9]} 35... Rd7 {[%clk 0:00:03.4]} 36. Qg4 {[%clk 0:01:02.3]}
36... Be4 {[%clk 0:00:03]} 37. Qe6+ {[%clk 0:00:58.7]} 37... Kf8 {[%clk
0:00:02.9]} 38. Bc5+ {[%clk 0:00:58.7]} 38... Bxc5 {[%clk 0:00:02.8]} 39. Nxc5
{[%clk 0:00:59.6]} 39... Re7 {[%clk 0:00:02.7]} 40. Qd6 {[%clk 0:00:51.5]} 40...
Qd5 {[%clk 0:00:02.9]} 41. Nxe4 {[%clk 0:00:39.6]} 41... Qxe4 {[%clk 0:00:02.5]}
42. Rc1 {[%clk 0:00:40.4]} 42... Kf7 {[%clk 0:00:02.9]} 43. Qd2 {[%clk
0:00:33.3]} 43... h5 {[%clk 0:00:03]} 44. Rc4 {[%clk 0:00:32.2]} 44... Qe5
{[%clk 0:00:03.3]} 45. h4 {[%clk 0:00:30.6]} 45... Qa1+ {[%clk 0:00:03.5]} 46.
Kh2 {[%clk 0:00:30.8]} 46... Qe5+ {[%clk 0:00:04.2]} 47. g3 {[%clk 0:00:31.5]}
47... Qf5 {[%clk 0:00:04.7]} 48. Kg2 {[%clk 0:00:30.4]} 48... Qe5 {[%clk
0:00:04.9]} 49. Rd4 {[%clk 0:00:30.5]} 49... a5 {[%clk 0:00:03.6]} 50. Qd3
{[%clk 0:00:29.6]} 50... Qc5 {[%clk 0:00:03.4]} 51. Rd5 {[%clk 0:00:24.1]} 51...
Qc6 {[%clk 0:00:03.7]} 52. Qb5 {[%clk 0:00:24.8]} 52... Qc2 {[%clk 0:00:03.6]}
53. Rxh5 {[%clk 0:00:20.5]} 53... Re2 {[%clk 0:00:03.7]} 54. Qd5+ {[%clk
0:00:20.5]} 54... Kg6 {[%clk 0:00:03.4]} 55. Qf3 {[%clk 0:00:14.9]} 55... Rxf2+
{[%clk 0:00:03.6]} 56. Qxf2 {[%clk 0:00:15.2]} 56... Qxf2+ {[%clk 0:00:03.5]}
57. Kxf2 {[%clk 0:00:15.6]} 57... Kxh5 {[%clk 0:00:04.4]} 58. a3 {[%clk
0:00:16.2]} 1-0

[Event "Early-Titled-Tuesday-Blitz-April-02-2024"]
[Site "Chess.com"]
[Date "2024.04.02"]
[Round "2"]
[White "Aisen1011"]
[Black "AnaKuchava"]
[Result "1-0"]
[WhiteElo "2465"]
[BlackElo "2167"]
[TimeControl "180+1"]
[EndTime "8:18:39 PDT"]
[Termination "Aisen1011 won by resignation"]

1. d4 {[%clk 0:02:58.9]} 1... d5 {[%clk 0:02:59.4]} 2. c4 {[%clk 0:02:58.4]}
2... e6 {[%clk 0:02:58.6]} 3. Nc3 {[%clk 0:02:58.4]} 3... Be7 {[%clk 0:02:58.3]}
4. cxd5 {[%clk 0:02:54.1]} 4... exd5 {[%clk 0:02:57.6]} 5. Qc2 {[%clk
0:02:54.5]} 5... c6 {[%clk 0:02:51.1]} 6. Nf3 {[%clk 0:02:49]} 6... Nf6 {[%clk
0:02:47.2]} 7. Bg5 {[%clk 0:02:49.4]} 7... h6 {[%clk 0:02:45.3]} 8. Bh4 {[%clk
0:02:49.5]} 8... O-O {[%clk 0:02:44.7]} 9. e3 {[%clk 0:02:49.4]} 9... Re8 {[%clk
0:02:43.5]} 10. Bd3 {[%clk 0:02:49.5]} 10... Bg4 {[%clk 0:02:43.3]} 11. Ne5
{[%clk 0:02:49.5]} 11... Be6 {[%clk 0:02:41.9]} 12. O-O {[%clk 0:02:47.9]} 12...
Nbd7 {[%clk 0:02:41.9]} 13. f4 {[%clk 0:02:48.2]} 13... Ng4 {[%clk 0:02:32]} 14.
Bxe7 {[%clk 0:02:32.1]} 14... Qxe7 {[%clk 0:02:32.9]} 15. Rae1 {[%clk
0:02:32.2]} 15... Ngxe5 {[%clk 0:02:30.9]} 16. fxe5 {[%clk 0:02:05.1]} 16... Nf8
{[%clk 0:02:27.7]} 17. Ne2 {[%clk 0:01:59.9]} 17... Rac8 {[%clk 0:02:17.2]} 18.
Ng3 {[%clk 0:01:56.1]} 18... c5 {[%clk 0:02:15.6]} 19. Qf2 {[%clk 0:01:46.7]}
19... c4 {[%clk 0:02:02.5]} 20. Bb1 {[%clk 0:01:17]} 20... b5 {[%clk 0:01:51.6]}
21. e4 {[%clk 0:01:17.2]} 21... b4 {[%clk 0:01:48]} 22. Nf5 {[%clk 0:01:14.4]}
22... Bxf5 {[%clk 0:01:47.1]} 23. exf5 {[%clk 0:01:15.3]} 23... Qc7 {[%clk
0:01:35.6]} 24. Qh4 {[%clk 0:01:03.2]} 24... c3 {[%clk 0:01:29.4]} 25. bxc3
{[%clk 0:00:56.4]} 25... bxc3 {[%clk 0:01:28.9]} 26. Bc2 {[%clk 0:00:50.4]}
26... Qd8 {[%clk 0:01:11]} 27. f6 {[%clk 0:00:46.3]} 27... Ne6 {[%clk
0:01:00.5]} 28. Qh5 {[%clk 0:00:15.5]} 28... Nxd4 {[%clk 0:00:55.2]} 29. fxg7
{[%clk 0:00:03]} 29... Rc7 {[%clk 0:00:20.1]} 30. Qxh6 {[%clk 0:00:03.2]} 30...
f5 {[%clk 0:00:20]} 31. Qh8+ {[%clk 0:00:03.4]} 31... Kf7 {[%clk 0:00:19.5]} 32.
Qh5+ {[%clk 0:00:03.8]} 32... Kxg7 {[%clk 0:00:19.2]} 33. Bxf5 {[%clk
0:00:04.5]} 33... Nxf5 {[%clk 0:00:12.9]} 34. Rxf5 {[%clk 0:00:05.4]} 34... Rh8
{[%clk 0:00:11.1]} 35. Rg5+ {[%clk 0:00:06]} 35... Qxg5 {[%clk 0:00:04.4]} 36.
Qxg5+ {[%clk 0:00:06]} 36... Kf7 {[%clk 0:00:05.1]} 37. e6+ {[%clk 0:00:06.2]}
37... Ke8 {[%clk 0:00:05]} 38. Qg6+ {[%clk 0:00:06.7]} 38... Kd8 {[%clk
0:00:05.5]} 39. e7+ {[%clk 0:00:07.1]} 39... Rxe7 {[%clk 0:00:05.6]} 40. Qf6
{[%clk 0:00:07.4]} 40... Re8 {[%clk 0:00:04.7]} 41. Qd6+ {[%clk 0:00:07.8]}
41... Kc8 {[%clk 0:00:05]} 42. Qc6+ {[%clk 0:00:08]} 42... Kd8 {[%clk
0:00:04.9]} 43. Qxd5+ {[%clk 0:00:08.1]} 43... Kc8 {[%clk 0:00:04.7]} 44. Qc4+
{[%clk 0:00:08.4]} 44... Kb7 {[%clk 0:00:03.5]} 45. Rxe7+ {[%clk 0:00:08.7]}
45... Rxe7 {[%clk 0:00:03.9]} 46. Qb4+ {[%clk 0:00:08.5]} 46... Ka6 {[%clk
0:00:03.6]} 47. Qxe7 {[%clk 0:00:09.1]} 47... c2 {[%clk 0:00:04.3]} 48. Qa3+
{[%clk 0:00:09.4]} 48... Kb7 {[%clk 0:00:04]} 49. Qc1 {[%clk 0:00:10.3]} 49...
a5 {[%clk 0:00:03.8]} 50. Qxc2 {[%clk 0:00:11.2]} 50... a4 {[%clk 0:00:04.7]}
51. g4 {[%clk 0:00:12.1]} 51... a3 {[%clk 0:00:05.6]} 52. g5 {[%clk 0:00:13]}
52... Kb6 {[%clk 0:00:06.4]} 53. g6 {[%clk 0:00:13.9]} 53... Kb5 {[%clk
0:00:07]} 54. g7 {[%clk 0:00:14.8]} 54... Ka5 {[%clk 0:00:07.9]} 55. Qc4 {[%clk
0:00:14.5]} 55... Kb6 {[%clk 0:00:07.9]} 56. g8=Q {[%clk 0:00:13.4]} 56... Ka7
{[%clk 0:00:08.8]} 57. Qce6 {[%clk 0:00:11.3]} 57... Kb7 {[%clk 0:00:09.7]} 1-0

[Event "Early-Titled-Tuesday-Blitz-April-02-2024"]
[Site "Chess.com"]
[Date "2024.04.02"]
[Round "2"]
[White "Shuvalov"]
[Black "Bauman_Guy"]
[Result "0-1"]
[WhiteElo "2607"]
[BlackElo "2904"]
[TimeControl "180+1"]
[EndTime "8:18:43 PDT"]
[Termination "Bauman_Guy won by resignation"]

1. d4 {[%clk 0:03:00.9]} 1... Nf6 {[%clk 0:02:59.8]} 2. c4 {[%clk 0:03:00.5]}
2... e6 {[%clk 0:03:00.1]} 3. Nf3 {[%clk 0:02:59.3]} 3... d5 {[%clk 0:03:00.1]}
4. Nc3 {[%clk 0:02:58.9]} 4... c5 {[%clk 0:02:58.7]} 5. cxd5 {[%clk 0:02:56.9]}
5... Nxd5 {[%clk 0:02:58.7]} 6. e4 {[%clk 0:02:56.1]} 6... Nxc3 {[%clk
0:02:58.8]} 7. bxc3 {[%clk 0:02:57]} 7... cxd4 {[%clk 0:02:59.7]} 8. cxd4 {[%clk
0:02:57.7]} 8... Bb4+ {[%clk 0:02:59.7]} 9. Bd2 {[%clk 0:02:58.4]} 9... Bxd2+
{[%clk 0:03:00.2]} 10. Qxd2 {[%clk 0:02:59.3]} 10... O-O {[%clk 0:03:00.5]} 11.
h4 {[%clk 0:02:59.6]} 11... b6 {[%clk 0:02:56.4]} 12. h5 {[%clk 0:02:56.4]}
12... Bb7 {[%clk 0:02:54.1]} 13. Bd3 {[%clk 0:02:51.1]} 13... Nd7 {[%clk
0:02:52.1]} 14. e5 {[%clk 0:02:45.9]} 14... h6 {[%clk 0:02:40.2]} 15. Rh3 {[%clk
0:02:45.1]} 15... Kh8 {[%clk 0:02:36.8]} 16. Rg3 {[%clk 0:02:43.2]} 16... Bxf3
{[%clk 0:02:15.2]} 17. Rxf3 {[%clk 0:02:02.4]} 17... Qh4 {[%clk 0:02:14.3]} 18.
Bb5 {[%clk 0:01:46.8]} 18... Rad8 {[%clk 0:02:08.6]} 19. Rh3 {[%clk 0:01:33.6]}
19... Qe4+ {[%clk 0:02:03.2]} 20. Qe3 {[%clk 0:01:32.4]} 20... Qxg2 {[%clk
0:01:53.4]} 21. Bf1 {[%clk 0:01:27.7]} 21... Qg5 {[%clk 0:01:46.6]} 22. Qxg5
{[%clk 0:01:23.7]} 22... hxg5 {[%clk 0:01:47.5]} 23. h6 {[%clk 0:01:24.6]} 23...
gxh6 {[%clk 0:01:44]} 24. Rxh6+ {[%clk 0:01:25.5]} 24... Kg7 {[%clk 0:01:44.6]}
25. Rh3 {[%clk 0:01:23.5]} 25... f6 {[%clk 0:01:34.9]} 26. exf6+ {[%clk
0:01:18.9]} 26... Nxf6 {[%clk 0:01:32.5]} 27. Rd1 {[%clk 0:01:15.3]} 27... Ne4
{[%clk 0:01:31.5]} 28. Rh2 {[%clk 0:01:03.5]} 28... Rf4 {[%clk 0:01:28.9]} 29.
Rc1 {[%clk 0:00:51.8]} 29... Rxd4 {[%clk 0:01:17.5]} 30. Rc7+ {[%clk 0:00:51.5]}
30... Kf6 {[%clk 0:01:18.2]} 31. Rxa7 {[%clk 0:00:46.7]} 31... Nc3 {[%clk
0:01:16.6]} 32. Be2 {[%clk 0:00:40.9]} 32... Rde4 {[%clk 0:01:07.3]} 33. f3
{[%clk 0:00:39.7]} 33... Rxf3 {[%clk 0:01:03.5]} 34. Kd2 {[%clk 0:00:39.5]}
34... Rg3 {[%clk 0:00:52.1]} 35. Bd3 {[%clk 0:00:32.4]} 35... Rd4 {[%clk
0:00:48.8]} 36. Kxc3 {[%clk 0:00:19.5]} 36... Rgxd3+ {[%clk 0:00:47]} 37. Kc2
{[%clk 0:00:20.2]} 37... Rf3 {[%clk 0:00:44.3]} 38. Ra8 {[%clk 0:00:18.5]} 38...
g4 {[%clk 0:00:40.3]} 39. Rg8 {[%clk 0:00:17.6]} 39... Ra4 {[%clk 0:00:36]} 40.
Kb2 {[%clk 0:00:17.4]} 40... Ke5 {[%clk 0:00:33]} 41. Re2+ {[%clk 0:00:17.2]}
41... Re4 {[%clk 0:00:18.8]} 42. Rxe4+ {[%clk 0:00:16.7]} 42... Kxe4 {[%clk
0:00:19.7]} 43. Rxg4+ {[%clk 0:00:17.2]} 43... Kd5 {[%clk 0:00:19.1]} 44. Rb4
{[%clk 0:00:16.7]} 44... Kc5 {[%clk 0:00:19.4]} 45. Re4 {[%clk 0:00:17]} 45...
Rf6 {[%clk 0:00:20]} 46. Kb3 {[%clk 0:00:15]} 46... Kd5 {[%clk 0:00:20.1]} 47.
Rb4 {[%clk 0:00:14.7]} 47... e5 {[%clk 0:00:20.6]} 48. Rb5+ {[%clk 0:00:14.2]}
48... Kd4 {[%clk 0:00:20.9]} 49. Rb4+ {[%clk 0:00:14.5]} 49... Kd3 {[%clk
0:00:21.2]} 50. Rb5 {[%clk 0:00:12.7]} 50... e4 {[%clk 0:00:19.5]} 51. Rd5+
{[%clk 0:00:13.3]} 51... Ke2 {[%clk 0:00:19.7]} 52. Re5 {[%clk 0:00:13.3]} 52...
e3 {[%clk 0:00:20]} 53. Kc2 {[%clk 0:00:12.2]} 53... Rc6+ {[%clk 0:00:19.5]} 54.
Kb2 {[%clk 0:00:12.1]} 54... Kd2 {[%clk 0:00:19.9]} 55. Rd5+ {[%clk 0:00:12.1]}
55... Ke1 {[%clk 0:00:20.5]} 56. Rf5 {[%clk 0:00:11.6]} 56... e2 {[%clk
0:00:20.8]} 57. a4 {[%clk 0:00:12.3]} 57... Rc5 {[%clk 0:00:20.6]} 58. Rf6
{[%clk 0:00:09.4]} 58... Kd2 {[%clk 0:00:20.5]} 59. Rd6+ {[%clk 0:00:09.3]}
59... Ke3 {[%clk 0:00:18.3]} 60. Re6+ {[%clk 0:00:09.4]} 60... Kd3 {[%clk
0:00:18.2]} 61. Rd6+ {[%clk 0:00:09.5]} 61... Ke4 {[%clk 0:00:16.8]} 62. Rxb6
{[%clk 0:00:09.4]} 62... e1=Q {[%clk 0:00:16.5]} 63. Re6+ {[%clk 0:00:09.4]}
63... Re5 {[%clk 0:00:17.1]} 64. Rxe5+ {[%clk 0:00:08.5]} 64... Kxe5 {[%clk
0:00:18]} 65. a5 {[%clk 0:00:09.2]} 65... Qxa5 {[%clk 0:00:18.1]} 0-1

[Event "Early-Titled-Tuesday-Blitz-April-02-2024"]
[Site "Chess.com"]
[Date "2024.04.02"]
[Round "2"]
[White "tactic"]
[Black "GMKrikor"]
[Result "0-1"]
[WhiteElo "2615"]
[BlackElo "2916"]
[TimeControl "180+1"]
[EndTime "8:18:47 PDT"]
[Termination "GMKrikor won by resignation"]

1. e4 {[%clk 0:03:00.9]} 1... c5 {[%clk 0:02:59.1]} 2. c3 {[%clk 0:03:00.6]}
2... Nf6 {[%clk 0:02:57.5]} 3. e5 {[%clk 0:03:01.1]} 3... Nd5 {[%clk 0:02:57.7]}
4. Nf3 {[%clk 0:03:01.9]} 4... Nc6 {[%clk 0:02:55.2]} 5. Na3 {[%clk 0:03:02.3]}
5... g6 {[%clk 0:02:47.1]} 6. Qb3 {[%clk 0:03:02]} 6... Nb6 {[%clk 0:02:43.7]}
7. d4 {[%clk 0:03:02.6]} 7... cxd4 {[%clk 0:02:43.5]} 8. cxd4 {[%clk 0:03:03.5]}
8... Bg7 {[%clk 0:02:44.1]} 9. d5 {[%clk 0:03:03.9]} 9... Nxe5 {[%clk
0:02:35.8]} 10. Nxe5 {[%clk 0:03:04.4]} 10... Bxe5 {[%clk 0:02:35.6]} 11. Bh6
{[%clk 0:03:05.1]} 11... d6 {[%clk 0:02:25.5]} 12. Bb5+ {[%clk 0:02:52.5]} 12...
Bd7 {[%clk 0:02:25.5]} 13. O-O {[%clk 0:02:46.6]} 13... a6 {[%clk 0:02:14.9]}
14. Bxd7+ {[%clk 0:02:33]} 14... Nxd7 {[%clk 0:02:15.5]} 15. Nc4 {[%clk
0:02:29.1]} 15... Nc5 {[%clk 0:02:04.1]} 16. Qe3 {[%clk 0:02:23.3]} 16... Bf6
{[%clk 0:02:02.1]} 17. Rac1 {[%clk 0:02:03.9]} 17... Rg8 {[%clk 0:00:46.6]} 18.
b4 {[%clk 0:01:48.1]} 18... Na4 {[%clk 0:00:46.7]} 19. Bf4 {[%clk 0:01:36.4]}
19... Kf8 {[%clk 0:00:44]} 20. Na5 {[%clk 0:01:34.5]} 20... Qd7 {[%clk
0:00:42.4]} 21. Rc2 {[%clk 0:01:28.2]} 21... Kg7 {[%clk 0:00:42.4]} 22. Rfc1
{[%clk 0:01:25.7]} 22... Rac8 {[%clk 0:00:40.9]} 23. g3 {[%clk 0:01:15.4]} 23...
h5 {[%clk 0:00:40.1]} 24. Qa7 {[%clk 0:01:14.7]} 24... Rxc2 {[%clk 0:00:25.3]}
25. Rxc2 {[%clk 0:01:15.6]} 25... Nc3 {[%clk 0:00:25.9]} 26. Bd2 {[%clk
0:00:40.3]} 26... Nxd5 {[%clk 0:00:21.4]} 27. Nxb7 {[%clk 0:00:36.3]} 27... Rc8
{[%clk 0:00:18]} 28. Rxc8 {[%clk 0:00:32.1]} 28... Qxc8 {[%clk 0:00:18.9]} 29.
Qxa6 {[%clk 0:00:32.6]} 29... Qc2 {[%clk 0:00:18.6]} 30. Be1 {[%clk 0:00:23.1]}
30... Qd1 {[%clk 0:00:18.9]} 31. Kf1 {[%clk 0:00:21]} 31... Nxb4 {[%clk
0:00:19.2]} 32. Qe2 {[%clk 0:00:20.5]} 32... Qxe2+ {[%clk 0:00:18.9]} 33. Kxe2
{[%clk 0:00:21.4]} 33... Nxa2 {[%clk 0:00:19.7]} 34. Na5 {[%clk 0:00:20.3]}
34... Nc3+ {[%clk 0:00:19.8]} 35. Kd3 {[%clk 0:00:20.3]} 35... Nd5 {[%clk
0:00:20.1]} 36. Nc4 {[%clk 0:00:20.5]} 36... Nc7 {[%clk 0:00:20]} 37. Ne3 {[%clk
0:00:20.9]} 37... e6 {[%clk 0:00:19.9]} 38. Nc4 {[%clk 0:00:21]} 38... Be7
{[%clk 0:00:19.1]} 39. Bc3+ {[%clk 0:00:21]} 39... Kf8 {[%clk 0:00:18.8]} 40.
Ne3 {[%clk 0:00:21.2]} 40... d5 {[%clk 0:00:18.2]} 41. Be5 {[%clk 0:00:21.4]}
41... Nb5 {[%clk 0:00:18.4]} 42. Nc2 {[%clk 0:00:21.7]} 42... Bd6 {[%clk
0:00:18.3]} 43. Bf6 {[%clk 0:00:22]} 43... Be7 {[%clk 0:00:18.3]} 44. Be5 {[%clk
0:00:22.5]} 44... Bc5 {[%clk 0:00:19]} 45. f3 {[%clk 0:00:21.6]} 45... Nd6
{[%clk 0:00:18.3]} 46. g4 {[%clk 0:00:21.8]} 46... hxg4 {[%clk 0:00:17.8]} 47.
fxg4 {[%clk 0:00:22.7]} 47... Ne4 {[%clk 0:00:18.2]} 48. h4 {[%clk 0:00:22]}
48... Be7 {[%clk 0:00:17.9]} 49. h5 {[%clk 0:00:20.5]} 49... gxh5 {[%clk
0:00:18.4]} 50. gxh5 {[%clk 0:00:21.4]} 50... f6 {[%clk 0:00:19.2]} 51. Bf4
{[%clk 0:00:20.6]} 51... Kf7 {[%clk 0:00:19.5]} 52. Ne3 {[%clk 0:00:18.4]} 52...
Nc5+ {[%clk 0:00:19.6]} 53. Ke2 {[%clk 0:00:18.7]} 53... Nd7 {[%clk 0:00:19.6]}
54. Kf3 {[%clk 0:00:18.4]} 54... Bc5 {[%clk 0:00:19.1]} 55. Ng2 {[%clk 0:00:17]}
55... e5 {[%clk 0:00:19.1]} 56. Bd2 {[%clk 0:00:16.6]} 56... f5 {[%clk
0:00:18.3]} 57. Nh4 {[%clk 0:00:16.6]} 57... Kf6 {[%clk 0:00:18.9]} 58. h6
{[%clk 0:00:17]} 58... e4+ {[%clk 0:00:18.7]} 59. Kg3 {[%clk 0:00:15.8]} 59...
Bd6+ {[%clk 0:00:18.8]} 60. Bf4 {[%clk 0:00:16.5]} 60... Bxf4+ {[%clk
0:00:18.5]} 61. Kxf4 {[%clk 0:00:17.4]} 61... Nf8 {[%clk 0:00:19]} 62. h7 {[%clk
0:00:11.4]} 62... Nxh7 {[%clk 0:00:18.2]} 63. Nxf5 {[%clk 0:00:12.2]} 63... Ng5
{[%clk 0:00:16.9]} 64. Ne3 {[%clk 0:00:10.9]} 64... Ne6+ {[%clk 0:00:16.7]} 65.
Kg4 {[%clk 0:00:10.8]} 65... Ke5 {[%clk 0:00:17.4]} 66. Kg3 {[%clk 0:00:10.5]}
66... Nc5 {[%clk 0:00:16.9]} 67. Kf2 {[%clk 0:00:10.6]} 67... d4 {[%clk
0:00:16.3]} 68. Nf1 {[%clk 0:00:10.3]} 68... Kf4 {[%clk 0:00:16.5]} 69. Ke2
{[%clk 0:00:10.4]} 69... Nb3 {[%clk 0:00:13.6]} 70. Nd2 {[%clk 0:00:09.4]} 70...
Nxd2 {[%clk 0:00:11.9]} 0-1